[Event "Mitropa Cup Open 2022"]
[Site "Corte"]
[Date "2022.05.05"]
[Round "6.8"]
[White "Laurent-Paoli, Pierre"]
[Black "Di Benedetto, Edoardo"]
[Result "1/2-1/2"]
[ECO "E15"]
[WhiteElo "2486"]
[BlackElo "2401"]
[Annotator "TA"]
[PlyCount "145"]
[EventDate "2022.04.30"]
[EventType "team-tourn"]
[EventCountry "FRA"]
[SourceTitle "playchess.com"]
[Source "ChessBase"]
[SourceQuality "1"]
[WhiteTeam "France"]
[BlackTeam "Italy"]
[WhiteTeamCountry "FRA"]
[BlackTeamCountry "ITA"]
[TimeControl "40/5400+30:1800+30"]

{[%evp 19,144,0,11,7,11,4,6,0,0,0,0,0,-4,-37,-37,-33,0,-73,-46,-105,-100,-101,-104,-101,-101,-97,-65,-85,-91,-89,-94,-141,-120,-123,-139,-211,-144,-376,-385,-374,-200,-195,-124,-151,-146,-138,-137,-141,-135,-155,-137,-125,-138,-132,-131,-132,-117,-84,-27,-52,-33,-30,-30,-30,-28,-28,-18,-79,-8,-8,-8,-8,0,0,0,0,0,0,0,0,0,0,0,0,0,0,0,0,0,0,0,0,0,0,0,0,0,0,0,0,7,7,7,7,7,7,7,7,7,0,0,0,0,0,0,0,0,0,0,0,0,0,0,0,0,0,0]} 1. d4 {[%emt 0:00:19]} Nf6 {[%emt 0:00:13]} 2. c4 {[%emt 0:01:32]} e6 {[%emt 0:00:13]} 3. Nf3 {[%emt 0:00:54]} b6 {[%emt 0:00:10]} 4. g3 {[%emt 0:01:29]} Ba6 {[%emt 0:00:19]} 5. b3 {[%emt 0:00:18]} Bb4+ {[%emt 0:00:19]} 6. Bd2 {[%emt 0:00:13]} Be7 {[%emt 0:00:24]} 7. Bg2 {[%emt 0:00:27]} d5 {[%emt 0:00:30]} 8. cxd5 {[%emt 0:00:36]} exd5 {[%emt 0:00:08]} 9. O-O {[%emt 0:00:07]} O-O {[%emt 0:00:09]} 10. Nc3 {[%emt 0:03:45]} Re8 {[%emt 0:00:09]} 11. Rc1 {[%emt 0:04:30] E15: Queen's Indian: 4 g3 sidelines, 4 g3 Ba6 and 4 g3 Bb7 early deviations.} Nbd7 {[%emt 0:06:17]} 12. Ne5 {[%emt 0:05:59]} Bb7 {[%emt 0:00:16]} 13. Bf4 {[%emt 0:03:27]} Nf8 {[%emt 0:02:32][%cal Bd7f8,Bf8e6,Be6c7,Bc7b5,Bb5a3][%mdl 32]} 14. Bg5 {[%emt 0:23:15][%cal Ob3b4]} Ne6 {[%emt 0:05:24]} 15. Bxf6 {[%emt 0:00:26]} Bxf6 {[%emt 0:00:11]} 16. f4 {[%emt 0:02:32] [#]} Be7 $146 {[%emt 0:19:50]} ({Predecessor:} 16... c5 17. e3 cxd4 18. exd4 a6 19. Qd3 Qd6 20. Rfd1 b5 21. Ne2 Bd8 22. h4 Nf8 {0-1 (46) Vrolijk,L (2418)-Esipenko,A (2540) Mamaia 2017}) 17. e3 {[%emt 0:01:44]} f6 {[%emt 0:01:46]} (17... c6 {feels hotter.} 18. Qc2 Bd6 19. Rfe1 a5) 18. Nf3 {[%emt 0:04:26]} (18. Nd3 $1 $11) 18... c6 {[%emt 0:05:10]} 19. Kh1 {[%emt 0:10:29]} ({Better is} 19. Ne1 $15) 19... Nc7 $17 {[%emt 0:03:34]} 20. Re1 {[%emt 0:11:35]} Ba3 {[%emt 0:14:16]} 21. Rc2 {[%emt 0:00:05]} Bb4 {[%emt 0:00:10]} 22. Nd2 {[%emt 0:01:07]} Ba6 {[%emt 0:01:43]} 23. Ncb1 {[%emt 0:04:59]} Bd3 $36 {[%emt 0:03:28][%mdl 2048] Black is really pushing.} 24. Rc1 {[%emt 0:01:33]} Nb5 {[%emt 0:04:43] Against a3} 25. a3 {[%emt 0:01:02]} (25. a4 $142 Nd6 26. Rxc6) 25... Nxa3 {[%emt 0:01:22]} 26. Nxa3 {[%emt 0:01:43]} Bxa3 {[%emt 0:00:08]} 27. Rxc6 {[%emt 0:00:05]} (27. Nb1 $17 {was called for.} Bxb1 28. Rxb1) 27... Bb4 {[%emt 0:03:11] A strong pair of Bishops.} 28. Qf3 $2 {[%emt 0:06:05]} (28. e4 $17 {is a better defense.}) 28... Bxd2 $19 {[%emt 0:05:10]} 29. Qxd5+ {[%emt 0:00:04]} Qxd5 {[%emt 0:00:22]} (29... Kh8 $142 30. Rd1 Qe7 $1) 30. Bxd5+ {[%emt 0:00:04]} Kh8 {[%emt 0:00:08]} (30... Kf8 $19 31. Rd1 {[#]} Rad8 $1 32. Rxd2 Bb5) 31. Rd1 $17 {[%emt 0:00:43] [#]} Rad8 $1 {[%emt 0:04:04]} 32. Rxd2 {[%emt 0:00:07]} Bb5 {[%emt 0:00:17]} ({Much worse is} 32... Rxe3 $6 33. Re6 Rxe6 34. Bxe6 Be4+ 35. Kg1 $11) 33. e4 {[%emt 0:01:00]} Bxc6 {[%emt 0:00:23]} 34. Bxc6 {[%emt 0:00:21][%mdl 4096] Endgame KRR-KRB} Re6 {[%emt 0:00:14]} 35. Bd5 {[%emt 0:01:49]} Red6 {[%emt 0:00:24][%cal Of6f5]} 36. g4 {[%emt 0:02:12]} g6 {[%emt 0:01:41][%cal Of6f5]} 37. f5 {[%emt 0:00:04]} gxf5 {[%emt 0:01:14]} 38. gxf5 {[%emt 0:00:06]} Kg7 {[%emt 0:01:47]} ({Black should play} 38... Rc8 $17) 39. Kg2 $11 {[%emt 0:02:53]} Rxd5 {[%emt 0:16:12]} 40. exd5 {[%emt 0:00:04]} Rxd5 $15 {[%emt 0:00:06] KR-KR} 41. Kf3 {[%emt 0:31:48]} Rxf5+ {[%emt 0:30:57]} 42. Ke4 {[%emt 0:00:11]} Rb5 {[%emt 0:00:00] With the idea ...Kf7.} 43. Rc2 {[%emt 0:00:00]} (43. d5 $1 $11 {remains equal.}) 43... f5+ {[%emt 0:00:00]} ({Black should try} 43... Kg6 $17 44. Rc3 a5) 44. Kf4 $11 {[%emt 0:00:00] The position is equal.} a5 {[%emt 0:00:00]} 45. h4 {[%emt 0:00:00]} Kf6 {[%emt 0:00:00]} 46. Rc6+ {[%emt 0:00:00]} Kf7 {[%emt 0:00:00]} 47. d5 {[%emt 0:00:00]} Rxb3 {[%emt 0:00:00]} 48. Kxf5 {[%emt 0:00:00]} Ke7 {[%emt 0:01:14]} 49. Ke5 {[%emt 0:00:00]} Re3+ {[%emt 0:02:30]} 50. Kd4 {[%emt 0:00:00]} Rb3 {[%emt 0:00:06]} 51. Ke5 {[%emt 0:00:00]} a4 {[%emt 0:00:36]} 52. Rc7+ {[%emt 0:00:00]} Ke8 {[%emt 0:00:06]} 53. Rxh7 {[%emt 0:00:00]} a3 {[%emt 0:00:24]} 54. Ra7 {[%emt 0:00:00]} b5 {[%emt 0:00:51]} 55. h5 {[%emt 0:00:00]} Rh3 {[%emt 0:01:57]} 56. h6 {[%emt 0:00:00]} Rh5+ {[%emt 0:00:33]} 57. Kd4 {[%emt 0:00:00] Threatens to win with h7.} Rh4+ {[%emt 0:00:07]} 58. Kc5 {[%emt 0:00:00] Black must now prevent h7.} Rxh6 {[%emt 0:00:36]} 59. Rxa3 {[%emt 0:00:00]} Kd7 {[%emt 0:00:20]} 60. Ra7+ {[%emt 0:00:00]} Kd8 {[%emt 0:00:04]} 61. Kxb5 {[%emt 0:00:00]} Rg6 {[%emt 0:00:06]} 62. Kc5 {[%emt 0:00:00]} Rh6 {[%emt 0:00:04]} 63. Rb7 {[%emt 0:00:00]} Rg6 {[%emt 0:00:05]} 64. Rb6 {[%emt 0:00:00]} Rxb6 {[%emt 0:00:05]} 65. Kxb6 {[%emt 0:00:00] White threatens Kc6 and mate. KP-K} Kd7 {[%emt 0:00:05]} 66. Kc5 {[%emt 0:00:00]} Kc7 {[%emt 0:00:05]} 67. d6+ {[%emt 0:00:00]} Kd7 {[%emt 0:00:04]} 68. Kd5 {[%emt 0:00:00]} Kd8 {[%emt 0:00:04]} 69. Kc5 {[%emt 0:00:00]} Kd7 {[%emt 0:00:03]} 70. Kd5 {[%emt 0:00:00]} Kd8 {[%emt 0:00:05]} 71. Ke6 {[%emt 0:00:00] White wants to mate with d7.} Ke8 {[%emt 0:00:06]} 72. d7+ {[%emt 0:00:00]} Kd8 {[%emt 0:00:04]} 73. Kd6 {[%emt 0:00:00] And White is the lucky defender.  Weighted Error Value: White=0.14 (very precise) /Black=0.14 (very precise)} 1/2-1/2

[Event "Mitropa Cup Open 2022"]
[Site "Corte"]
[Date "2022.05.05"]
[Round "6.8"]
[White "Bouslimi, Nabil"]
[Black "Fecker, Noah"]
[Result "0-1"]
[ECO "D85"]
[WhiteElo "2065"]
[BlackElo "2387"]
[Annotator "TA"]
[PlyCount "80"]
[EventDate "2022.04.30"]
[EventType "team-tourn"]
[EventCountry "FRA"]
[SourceTitle "playchess.com"]
[Source "ChessBase"]
[SourceQuality "1"]
[WhiteTeam "France"]
[BlackTeam "Switzerland"]
[WhiteTeamCountry "FRA"]
[BlackTeamCountry "SUI"]
[TimeControl "40/5400+30:1800+30"]

{[%evp 21,80,14,20,0,-10,0,0,-26,-23,-23,-30,-53,-37,-68,-56,-49,-41,-37,0,-44,-61,-164,-162,-162,-162,-158,-160,-206,-210,-240,-222,-265,-266,-341,-339,-394,-388,-431,-407,-407,-400,-404,-248,-252,-275,-255,-254,-291,-233,-383,-382,-517,-516,-847,-819,-2631,-3058,-5722,-5402,-29991,-29992]} 1. d4 {[%emt 0:00:03]} Nf6 {[%emt 0:00:09]} 2. c4 {[%emt 0:00:06]} g6 {[%emt 0:00:05]} 3. Nc3 {[%emt 0:00:07]} d5 {[%emt 0:00:06]} 4. cxd5 {[%emt 0:00:05]} Nxd5 {[%emt 0:00:04]} 5. e4 {[%emt 0:00:07]} Nxc3 {[%emt 0:00:06]} 6. bxc3 {[%emt 0:00:04]} Bg7 {[%emt 0:00:08]} 7. Bb5+ {[%emt 0:00:48]} c6 {[%emt 0:00:52][%cal Bc7c6,Bc6c5][%mdl 32]} 8. Ba4 {[%emt 0:00:26]} O-O {[%emt 0:00:16]} 9. Ne2 {[%emt 0:00:27]} c5 {[%emt 0:11:36]} 10. O-O {[%emt 0:02:43]} Nc6 {[%emt 0:05:09][%cal Bb8c6,Bc6a5,Ba5c4,Bc4e3][%mdl 32]} 11. Be3 {[%emt 0:05:01]} Na5 {[%emt 0:03:04]} 12. Qd3 {[%emt 0:04:30] [#] D85: Exchange Grünfeld: Unusual White 7th moves and lines with 7 Nf3.} Bd7 $146 {[%emt 0:04:57]} ({Predecessor:} 12... cxd4 13. cxd4 a6 14. Rac1 b5 15. Bb3 e6 16. Rfd1 Bb7 17. Bf4 Nxb3 18. axb3 Rc8 19. Rxc8 Qxc8 {½-½ (86) Ovod,E (2263)-Vokarev,S (2469) St Petersburg 2000}) 13. Bxd7 {[%emt 0:06:43]} Qxd7 {[%emt 0:00:08]} 14. Rab1 {[%emt 0:07:22] The position is equal.} b6 {[%emt 0:06:44]} 15. Rfd1 {[%emt 0:17:40]} Rfd8 {[%emt 0:03:37]} 16. Qc2 {[%emt 0:06:47]} Nc4 {[%emt 0:10:02] White must now prevent ...Na3.} 17. Qb3 {[%emt 0:06:17] Inhibits Na3.} Nxe3 {[%emt 0:03:22] Black is more active.} 18. fxe3 {[%emt 0:00:08]} Qg4 {[%emt 0:01:24]} 19. Ng3 {[%emt 0:08:17]} e5 {[%emt 0:18:54][%cal Re5d4]} 20. dxc5 {[%emt 0:10:26]} Bh6 $36 {[%emt 0:04:32][%cal Bg7h6,Bh6e3,Be3c5,Bc5e7][%mdl 2080] Black has good play.} 21. Rd5 {[%emt 0:05:14] White is on the road to losing.} ({White should try} 21. c6 $15) 21... Bxe3+ $19 {[%emt 0:01:00]} 22. Kh1 {[%emt 0:00:12]} Bxc5 {[%emt 0:02:30]} 23. Rf1 {[%emt 0:01:34] [#] White threatens Rxd8+ and mate.} Qe6 {[%emt 0:01:41]} 24. Qd1 {[%emt 0:03:55]} (24. h3 $17 {might work better.}) 24... Be7 {[%emt 0:05:23]} 25. Qf3 {[%emt 0:01:08]} Rac8 {[%emt 0:00:31]} 26. c4 {[%emt 0:04:00]} Rc7 {[%emt 0:04:09]} ({Weaker is} 26... Rxc4 27. Rxe5 Qxe5 28. Qxf7+ Kh8 29. Qxc4 $17) 27. Rfd1 {[%emt 0:05:03]} Rdc8 {[%emt 0:00:48]} 28. Nf1 {[%emt 0:00:33]} Rxc4 {[%emt 0:01:01]} 29. Ne3 {[%emt 0:01:36]} Rc1 {[%emt 0:01:14]} 30. Qf1 {[%emt 0:02:44]} Rxd1 31. Rxd1 {[%emt 0:00:32]} Bc5 {[%emt 0:01:54]} 32. Nd5 {[%emt 0:00:13]} Bd4 {[%emt 0:00:21]} 33. Qa6 {[%emt 0:00:07][%cal Oa6c8] [#] Threatens to win with Qxc8+!} Rc2 {[%emt 0:01:27][%cal Oc2g2] Strongly threatening ...Rxg2!} 34. Rf1 {[%emt 0:00:13]} Kg7 {[%emt 0:03:12][%cal Oc2g2] aiming for ...Rxg2!} 35. Qxa7 {[%emt 0:01:02]} (35. h3 $142) 35... Re2 {[%emt 0:00:30]} 36. h3 {[%emt 0:01:31]} Rxe4 {[%emt 0:01:17]} 37. Qb7 {[%emt 0:00:06]} (37. Nc7 $142 Qc6 38. Qa8 Qxa8 39. Nxa8) 37... Rh4 {[%emt 0:01:27][%cal Oh4h3] ( -> ...Rxh3+!)} 38. Rf3 {[%emt 0:00:33]} e4 {[%emt 0:00:51]} 39. Nc7 {[%emt 0:01:00]} Qd7 {[%emt 0:00:57]} 40. Ne6+ {[%emt 0:00:34]} Qxe6 {[%emt 0:00:12] Weighted Error Value: White=1.09/Black=0.10 (very precise)} 0-1

[Event "Mitropa Cup Open 2022"]
[Site "Corte"]
[Date "2022.05.06"]
[Round "7.1"]
[White "Erdos, Viktor"]
[Black "Baenziger, Fabian"]
[Result "1/2-1/2"]
[ECO "B52"]
[WhiteElo "2587"]
[BlackElo "2430"]
[Annotator "TA"]
[PlyCount "43"]
[EventDate "2022.04.30"]
[EventType "team-tourn"]
[EventCountry "FRA"]
[SourceTitle "playchess.com"]
[Source "ChessBase"]
[SourceQuality "1"]
[WhiteTeam "Hungary"]
[BlackTeam "Switzerland"]
[WhiteTeamCountry "HUN"]
[BlackTeamCountry "SUI"]
[TimeControl "40/5400+30:1800+30"]

{[%evp 23,43,37,37,31,56,56,51,56,109,28,39,42,34,16,61,64,64,52,58,13,23,0]} 1. e4 {[%emt 0:06:12]} c5 {[%emt 0:00:18]} 2. Nf3 {[%emt 0:00:06]} d6 {[%emt 0:00:08]} 3. Bb5+ {[%emt 0:00:07]} Bd7 {[%emt 0:00:05]} 4. Bxd7+ {[%emt 0:00:22]} Nxd7 {[%emt 0:00:07]} 5. O-O {[%emt 0:00:30]} Ngf6 {[%emt 0:00:20]} 6. Qe2 {[%emt 0:00:06]} e6 {[%emt 0:00:48]} 7. d4 {[%emt 0:02:34]} cxd4 {[%emt 0:02:56]} 8. Nxd4 {[%emt 0:00:07]} a6 {[%emt 0:05:20]} 9. c4 {[%emt 0:01:19]} Rc8 {[%emt 0:00:51]} 10. b3 {[%emt 0:03:51]} Qa5 {[%emt 0:01:57]} 11. Bb2 {[%emt 0:02:29]} Be7 {[%emt 0:01:36]} 12. Nc3 {[%emt 0:08:09]} O-O {[%emt 0:02:21]} 13. Rad1 {[%emt 0:00:33] B52: Sicilian: Moscow Variation with 3...Bd7.} Bd8 {[%emt 0:15:54][%cal Ob7b5]} 14. f4 {[%emt 0:07:40]} Re8 {[%emt 0:12:50][%cal Ob7b5]} 15. Kh1 {[%emt 0:02:01] White is slightly better.} Bc7 {[%emt 0:06:22] [#]} (15... Be7 $14) 16. Rf3 $146 {[%emt 0:22:09]} ({White should play} 16. g4 $16) ({Predecessor:} 16. Rd3 Bb8 17. Rh3 Qc5 18. Nf3 b5 19. e5 dxe5 20. fxe5 Nxe5 21. Ng5 Qe7 22. Nxh7 {½-½ (53) Iordachescu,V (2572)-Kozul,Z (2593) Dresden 2008}) 16... Bb8 {[%emt 0:13:09]} 17. Nc2 {[%emt 0:02:02]} Qh5 {[%emt 0:08:02]} 18. Qf1 {[%emt 0:10:41]} Qc5 {[%emt 0:02:48][%cal Ob7b5]} 19. Ba3 {[%emt 0:09:16]} Qc6 {[%emt 0:00:09]} 20. Qe1 {[%emt 0:06:07] White is more active.} Nc5 {[%emt 0:02:15]} 21. Bb2 {[%emt 0:04:45]} b5 {[%emt 0:02:49] ...bxc4 is the strong threat.} (21... Ncxe4 $2 22. Nd4 Qc5 23. Nxe4 $18) 22. cxb5 {[%emt 0:01:53] Weighted Error Value: White=0.23 (precise) /Black=0.13 (very precise)} 1/2-1/2

[Event "Mitropa Cup Open 2022"]
[Site "Corte"]
[Date "2022.05.06"]
[Round "7.1"]
[White "Babula, Vlastimil"]
[Black "Moroni, Luca Jr"]
[Result "1-0"]
[ECO "D52"]
[WhiteElo "2576"]
[BlackElo "2581"]
[Annotator "TA"]
[PlyCount "87"]
[EventDate "2022.04.30"]
[EventType "team-tourn"]
[EventCountry "FRA"]
[SourceTitle "playchess.com"]
[Source "ChessBase"]
[SourceQuality "1"]
[WhiteTeam "Czech Republic"]
[BlackTeam "Italy"]
[WhiteTeamCountry "CZE"]
[BlackTeamCountry "ITA"]
[TimeControl "40/5400+30:1800+30"]

{[%evp 13,87,17,36,25,29,13,0,11,16,18,35,16,28,14,17,11,44,16,18,12,41,40,33,31,24,37,68,58,89,93,92,95,89,89,90,88,90,89,86,89,102,34,33,27,29,6,0,8,64,14,16,0,36,17,21,0,199,192,401,454,459,452,456,452,459,453,434,403,518,518,755,744,703,689,679,636]} 1. d4 {[%emt 0:00:05]} d5 {[%emt 0:00:03]} 2. c4 {[%emt 0:00:07]} e6 {[%emt 0:00:03]} 3. Nf3 {[%emt 0:00:14]} Nf6 {[%emt 0:00:03]} 4. Nc3 {[%emt 0:00:15]} c6 {[%emt 0:00:32]} 5. Bg5 {[%emt 0:00:24]} Nbd7 {[%emt 0:00:12]} 6. e3 {[%emt 0:00:25]} Qa5 {[%emt 0:00:05]} 7. cxd5 {[%emt 0:00:24]} Nxd5 {[%emt 0:00:59]} 8. Rc1 $1 {[%emt 0:00:37][%mdl 4] is recently more successful than 8.Qd2. D52: Queen's Gambit Declined: Cambridge Springs Variation.} Bb4 {[%emt 0:00:16][%cal Rd5c3]} 9. a3 {[%emt 0:07:19]} Bxc3+ {[%emt 0:04:12]} 10. bxc3 {[%emt 0:00:07] The position is equal.} h6 {[%emt 0:00:04] is the legacy move (10...b6).} (10... Nxc3 $2 11. Qd2 $18) 11. Bh4 {[%emt 0:00:30]} b6 {[%emt 0:00:10]} (11... Nxc3 $2 12. Qd2 $18) 12. Qd2 {[%emt 0:08:05]} Ba6 {[%emt 0:00:16]} 13. c4 {[%emt 0:02:08]} Qxd2+ {[%emt 0:00:09]} 14. Nxd2 {[%emt 0:01:02]} N5f6 {[%emt 0:00:04]} 15. Bd3 {[%emt 0:07:12]} c5 {[%emt 0:03:51]} 16. O-O {[%emt 0:01:39]} Rc8 {[%emt 0:02:18][%cal Ba8c8,Bc8c6,Bc6d6][%mdl 32]} 17. Rfd1 {[%emt 0:04:50]} O-O {[%emt 0:05:58]} 18. f3 {[%emt 0:11:23]} cxd4 {[%emt 0:05:17]} 19. exd4 {[%emt 0:00:40] [#]} Rc6 $146 {[%emt 0:03:35]} ({Predecessor:} 19... g5 20. Bf2 Rfd8 21. Bf1 Bb7 22. Re1 e5 23. Nb3 e4 24. d5 exf3 25. gxf3 b5 {1-0 (76) Stojanovski,S (2265)-Brondal,P (2078) Ballerup 2014}) 20. a4 {[%emt 0:05:23]} Rfc8 {[%emt 0:07:21]} 21. Ra1 {[%emt 0:05:06]} Rd6 {[%emt 0:13:03]} 22. Bf2 {[%emt 0:01:42]} Nc5 {[%emt 0:13:42]} 23. Bf1 {[%emt 0:09:28]} (23. dxc5 Rxd3 24. cxb6 axb6 $14) 23... Nb7 24. a5 $1 Nxa5 {[%emt 0:04:45][%cal Ra6c4]} 25. c5 {[%emt 0:00:49][%mdl 64] Discovered Attack} Bxf1 {[%emt 0:00:05]} 26. cxd6 {[%emt 0:00:20]} Bb5 {[%emt 0:00:06]} 27. Rac1 {[%emt 0:11:33]} (27. Ne4 $1 $16) 27... Rd8 $14 {[%emt 0:01:30]} 28. Rc7 {[%emt 0:00:59]} a6 {[%emt 0:05:47]} 29. Bh4 {[%emt 0:05:57]} g5 $1 {[%emt 0:02:41]} ({Don't play} 29... Rxd6 30. Bxf6 gxf6 31. Ne4 $16) 30. Bg3 $36 {[%emt 0:01:39][%mdl 2048] Hoping for Rdc1. Black is under pressure.} Ne8 {[%emt 0:04:35]} (30... Nd5 $1 $11) 31. Ra7 {[%emt 0:05:32] White is much more active.} (31. d5 $14) 31... Nxd6 $11 {[%emt 0:07:36] Pair of Knights!} 32. d5 {[%emt 0:03:25][%cal Bd4d5,Bd5d6,Bd6d7][%mdl 32] Inhibits Nc6. aiming for dxe6.} Ndc4 {[%emt 0:06:43]} ({But not} 32... exd5 33. Bxd6 Rxd6 34. Ne4 $1 $14) (32... Ne8 $5 {[%cal Rd8d5]}) 33. Nxc4 {[%emt 0:00:48]} Nxc4 {[%emt 0:00:04]} 34. d6 {[%emt 0:00:37]} a5 $2 {[%emt 0:01:40] [#]} (34... Ne3 $11 {and Black has nothing to worry.} 35. Rc1 Nd5) 35. Rc7 $1 $18 {[%emt 0:01:20][%mdl 1024] Black must now prevent Rb1. White has strong compensation.} Kf8 $2 {[%emt 0:06:43]} (35... Ne3 36. Rb1 Bd7) 36. Rb1 {[%emt 0:01:12]} Ba6 {[%emt 0:01:41]} 37. d7 {[%emt 0:01:03]} b5 {[%emt 0:01:51]} 38. Ra7 {[%emt 0:01:35]} b4 {[%emt 0:00:14]} 39. Rxa6 {[%emt 0:03:01]} Rxd7 {[%emt 0:00:01]} 40. Be1 {[%emt 0:00:54]} Kg7 41. Rc1 {[%emt 0:03:35] White is clearly winning.} b3 {[%emt 0:04:16]} 42. Rxc4 {[%emt 0:02:37]} Rd1 {[%emt 0:02:18]} 43. Kf2 {[%emt 0:00:30]} b2 {[%emt 0:00:02]} 44. Bc3+ {[%emt 0:00:22] Weighted Error Value: White=0.07 (flawless) /Black=0.27 (precise)} 1-0

[Event "Mitropa Cup Open 2022"]
[Site "Corte"]
[Date "2022.05.06"]
[Round "7.2"]
[White "Pelletier, Yannick"]
[Black "Kozak, Adam"]
[Result "1-0"]
[ECO "E10"]
[WhiteElo "2556"]
[BlackElo "2532"]
[Annotator "TA"]
[PlyCount "41"]
[EventDate "2022.04.30"]
[EventType "team-tourn"]
[EventCountry "FRA"]
[SourceTitle "playchess.com"]
[Source "ChessBase"]
[SourceQuality "1"]
[WhiteTeam "Switzerland"]
[BlackTeam "Hungary"]
[WhiteTeamCountry "SUI"]
[BlackTeamCountry "HUN"]
[TimeControl "40/5400+30:1800+30"]

{[%evp 11,41,64,62,64,91,65,83,73,68,71,98,97,272,264,310,310,322,293,275,291,816,778,884,858,880,881,864,857,995,984,888,575]} 1. d4 {[%emt 0:00:05]} Nf6 {[%emt 0:03:48]} 2. c4 {[%emt 0:00:04]} c5 {[%emt 0:00:29]} 3. d5 {[%emt 0:00:34]} b5 {[%emt 0:00:29]} 4. Nf3 {[%emt 0:02:18]} e6 {[%emt 0:01:30]} 5. Bg5 {[%emt 0:04:14]} h6 {[%emt 0:02:31]} 6. Bxf6 {[%emt 0:05:29]} Qxf6 {[%emt 0:04:51]} 7. Nc3 {[%emt 0:04:10] E10: Blumenfeld Gambit.} bxc4 {[%emt 0:29:08]} 8. e4 {[%emt 0:10:27]} e5 {[%emt 0:13:21]} 9. Bxc4 {[%emt 0:07:11] White is better.} d6 10. Bb5+ {[%emt 0:00:55] [#]} Nd7 $146 {[%emt 0:07:31]} ({Predecessor:} 10... Bd7 11. O-O Qd8 12. Qa4 Be7 13. b4 cxb4 14. Qxb4 O-O 15. Bd3 Bg4 16. Nd2 Nd7 {½-½ (23) Thoma,W (2161)-Dudas,J (2320) Austria 2003}) 11. Qb3 {[%emt 0:03:53] [#] Threatens to win with Bc6. White is more active.} Ke7 $2 {[%emt 0:06:51]} (11... c4 $16 12. Qxc4 Qd8) 12. O-O {[%emt 0:02:28]} a6 {[%emt 0:09:35]} 13. Bxd7 {[%emt 0:02:47]} ({Weaker is} 13. Bc6 Rb8 14. Qa3 Ke8 $16) 13... Bxd7 14. Qb7 {[%emt 0:00:44]} Rd8 {[%emt 0:01:07]} 15. Nd2 {[%emt 0:01:08][%cal Bf3d2,Bd2f3,Bf3e5,Be5c4][%mdl 32]} ({Less strong is} 15. Qxa6 g5 16. Ne1 h5 $16) 15... Qg5 {[%emt 0:05:54]} (15... Ke8 16. Qxa6 Qg5) 16. f4 $18 {White is clearly winning.} exf4 {[%emt 0:02:26]} 17. e5 {[%emt 0:11:41] exd6+ is the strong threat.} dxe5 {[%emt 0:00:07]} 18. Nf3 {[%emt 0:00:59]} Qf5 {[%emt 0:06:43] [#]} 19. Nxe5 $1 {[%emt 0:00:31][%mdl 512] Pair of Knights!} Kf6 {[%emt 0:00:54]} (19... f6 20. Nc6+) 20. Qb6+ {[%emt 0:05:42]} Bd6 {[%emt 0:00:16]} 21. Nc4 {[%emt 0:00:52] Black got outplayed after the opening.  Weighted Error Value: White=0.05 (flawless) /Black=0.47} 1-0